bitfinex/quotes_BTCUSD_20250215
["timestamp","ask_amount","ask_price","bid_price","bid_amount"]
[1739650680803,0.78142743,97619.0,97618.0,0.12470019]
[1739650681858,0.47776943,97619.0,97618.0,0.12470019]
[1739650682057,0.44582742,97619.0,97618.0,0.12470019]
[1739650682683,0.59948542,97619.0,97618.0,0.12470019]
[1739650683626,0.44582742,97619.0,97618.0,0.12470019]
[1739650684284,0.59948542,97619.0,97618.0,0.12470019]
[1739650692417,0.59948542,97619.0,97618.0,0.04840019]
[1739650692878,0.61862597,97619.0,97618.0,0.04840019]
[1739650693381,0.29702597,97619.0,97618.0,0.04840019]
[1739650698794,0.44702597,97619.0,97618.0,0.04840019]
[1739650699001,0.44702597,97619.0,97618.0,1.9e-07]
[1739650700325,0.47894847,97619.0,97618.0,1.9e-07]
[1739650708355,0.47894847,97619.0,97618.0,0.07880019]
[1739650709229,0.44702597,97619.0,97618.0,0.12380019]
[1739650710037,0.13636797,97619.0,97618.0,0.12380019]
[1739650710262,0.28302597,97619.0,97618.0,0.12380019]
[1739650710472,0.29702597,97619.0,97618.0,0.12380019]
[1739650711880,0.14336797,97619.0,97618.0,0.12380019]
[1739650712710,0.12936797,97619.0,97618.0,0.12380019]
[1739650713118,0.13636797,97619.0,97618.0,0.12380019]
[1739650713275,0.1359282,97619.0,97618.0,0.12380019]
[1739650713474,0.14336797,97619.0,97618.0,0.12380019]
[1739650714314,0.1359282,97619.0,97618.0,0.12380019]
[1739650714867,0.12422742,97619.0,97618.0,0.12380019]
[1739650715069,0.27788542,97619.0,97618.0,0.12380019]
[1739650716043,0.2970607,97619.0,97618.0,0.12380019]
[1739650717234,0.1434027,97619.0,97618.0,0.12380019]
[1739650718976,0.2970607,97619.0,97618.0,0.12380019]
[1739650723833,0.2970607,97619.0,97618.0,0.04500019]
[1739650726364,0.2970607,97619.0,97618.0,1.9e-07]
[1739650734741,0.30664897,97619.0,97618.0,1.9e-07]
[1739650736688,0.33860301,97619.0,97618.0,1.9e-07]
[1739650736899,0.48860301,97619.0,97618.0,1.9e-07]
[1739650737326,0.51929273,97619.0,97618.0,1.9e-07]
[1739650738469,0.48860301,97619.0,97618.0,1.9e-07]
[1739650739027,0.47901474,97619.0,97618.0,1.9e-07]
[1739650739452,0.49925957,97619.0,97618.0,1.9e-07]
[1739650741951,0.48525957,97619.0,97618.0,1.9e-07]
[1739650742329,0.49225957,97619.0,97618.0,1.9e-07]
[1739650742642,0.49925957,97619.0,97618.0,1.9e-07]
[1739650744127,0.49225957,97619.0,97618.0,1.9e-07]
[1739650744626,0.49925957,97619.0,97618.0,1.9e-07]
[1739650745266,0.49225957,97619.0,97618.0,1.9e-07]
[1739650745667,0.48525957,97619.0,97618.0,1.9e-07]
[1739650746253,0.49225957,97619.0,97618.0,1.9e-07]
[1739650746451,0.49925957,97619.0,97618.0,1.9e-07]
[1739650746693,0.49225957,97619.0,97618.0,1.9e-07]
[1739650746902,0.49925957,97619.0,97618.0,1.9e-07]
[1739650747364,0.49225957,97619.0,97618.0,1.9e-07]
[1739650747816,0.49925957,97619.0,97618.0,1.9e-07]
[1739650748289,0.49225957,97619.0,97618.0,1.9e-07]
[1739650748991,0.49925957,97619.0,97618.0,1.9e-07]
[1739650754855,0.50883291,97619.0,97618.0,1.9e-07]
[1739650756491,0.83043291,97619.0,97618.0,1.9e-07]
[1739650757561,0.82343291,97619.0,97618.0,1.9e-07]
[1739650757993,0.83043291,97619.0,97618.0,1.9e-07]
[1739650758424,0.82343291,97619.0,97618.0,1.9e-07]
[1739650758825,0.82085957,97619.0,97618.0,1.9e-07]
[1739650759236,0.81385957,97619.0,97618.0,1.9e-07]
[1739650759422,0.82085957,97619.0,97618.0,1.9e-07]
[1739650765365,0.92865957,97619.0,97618.0,1.9e-07]
[1739650765562,0.82085957,97619.0,97618.0,1.9e-07]
[1739650770003,0.66979823,97619.0,97595.0,0.0012784]
[1739650770232,0.16113377,97596.0,97595.0,0.00132291]
[1739650770396,0.58651832,97596.0,97595.0,0.00132291]
[1739650770599,0.58523742,97596.0,97595.0,0.00032851]
[1739650771414,0.63639257,97596.0,97595.0,0.00032851]
[1739650771676,0.64598923,97596.0,97595.0,0.00032851]
[1739650772664,0.65298923,97596.0,97595.0,0.00032851]
[1739650772872,0.65998923,97596.0,97595.0,0.00032851]
[1739650776039,0.62800936,97596.0,97595.0,0.00032851]
[1739650776242,0.65870739,97596.0,97595.0,0.00032851]
[1739650778074,0.6906838,97596.0,97595.0,0.00032851]
[1739650778282,0.65870739,97596.0,97595.0,0.00032851]
[1739650781245,0.65126762,97596.0,97595.0,0.00032851]
[1739650781458,0.50501339,97596.0,97595.0,0.12992851]
[1739650782524,0.65870739,97596.0,97595.0,0.12992851]
[1739650783763,0.62800936,97596.0,97595.0,0.12992851]
[1739650786974,0.62800936,97596.0,97595.0,0.00032851]
[1739650791530,0.71994588,97596.0,97595.0,0.00032851]
[1739650794286,0.62800936,97596.0,97595.0,0.00032851]
[1739650794927,0.65999751,97596.0,97595.0,0.00032851]
[1739650800499,0.62800936,97596.0,97595.0,0.00032851]
[1739650801318,0.65999861,97596.0,97595.0,0.00032851]
[1739650801941,0.62800936,97596.0,97595.0,0.00032851]
[1739650803289,0.66000009,97596.0,97595.0,0.00032851]
[1739650803800,0.62800936,97596.0,97595.0,0.00032851]
[1739650804038,0.66000004,97596.0,97595.0,0.00032851]
[1739650804772,0.62800936,97596.0,97595.0,0.00032851]
[1739650805271,0.65999763,97596.0,97595.0,0.00032851]
[1739650808517,0.62800936,97596.0,97595.0,0.00032851]
[1739650810449,0.47431536,97596.0,97595.0,0.08292851]
[1739650810655,0.62056959,97596.0,97595.0,0.08292851]
[1739650810869,0.46687559,97596.0,97595.0,0.08292851]
[1739650811280,0.45514008,97596.0,97595.0,0.08292851]
[1739650811507,0.44770031,97596.0,97595.0,0.08292851]
[1739650811716,0.45514008,97596.0,97595.0,0.08292851]
[1739650813499,0.44770031,97596.0,97595.0,0.23662451]
[1739650813699,0.44770031,97596.0,97595.0,0.28412451]
[1739650814779,0.44070031,97596.0,97595.0,0.28412451]
[1739650814985,0.45988963,97596.0,97595.0,0.28412451]
[1739650815220,0.45488963,97596.0,97595.0,0.28412451]
[1739650815356,0.45788963,97596.0,97595.0,0.28412451]
[1739650817188,0.35538598,97596.0,97595.0,0.28412451]
[1739650817818,0.35338598,97596.0,97595.0,0.28412451]
[1739650818236,0.33419666,97596.0,97595.0,0.28412451]
[1739650818385,0.3216,97596.0,97595.0,0.28412451]
[1739650819805,0.09213098,97611.0,97610.0,0.234772]
[1739650819806,0.41373098,97611.0,97610.0,0.234772]
[1739650820004,0.51623463,97611.0,97610.0,0.281972]
[1739650820804,0.53539658,97611.0,97610.0,0.281972]
[1739650821016,0.4432656,97611.0,97610.0,0.281972]
[1739650821255,0.45984652,97611.0,97610.0,0.281972]
[1739650821677,0.46684652,97611.0,97610.0,0.1283]
[1739650822731,0.46684652,97611.0,97610.0,0.281972]
[1739650823366,0.46684652,97611.0,97610.0,0.1283]
[1739650824446,0.44768457,97611.0,97610.0,0.1283]
[1739650826316,0.44768457,97611.0,97610.0,0.281972]
[1739650826517,0.44768457,97611.0,97610.0,0.1283]
[1739650831609,0.43810365,97611.0,97610.0,0.1283]
[1739650833772,0.43810365,97611.0,97610.0,0.0472]
[1739650834586,0.44767417,97611.0,97610.0,0.0472]
[1739650840926,0.46683798,97611.0,97610.0,0.0472]
[1739650843642,0.44767417,97611.0,97610.0,0.0472]
[1739650843855,0.44767417,97611.0,97608.0,0.153675]
[1739650844053,0.10250365,97610.0,97608.0,0.153675]
[1739650844253,0.10250365,97610.0,97607.0,0.153677]
[1739650844895,0.00957052,97609.0,97607.0,0.153677]
[1739650846045,0.00957052,97608.0,97607.0,0.153677]
[1739650847490,0.01157052,97608.0,97607.0,0.153677]
[1739650847947,0.00957052,97608.0,97607.0,0.153677]
[1739650848424,0.01057052,97608.0,97607.0,0.153677]
[1739650849578,0.01057052,97608.0,97606.0,0.204904]
[1739650849978,0.01057052,97608.0,97607.0,0.153677]
[1739650850647,0.001,97608.0,97607.0,0.153677]
[1739650851196,0.10250365,97610.0,97607.0,0.153677]
[1739650852126,0.001,97608.0,97607.0,0.153677]
[1739650852336,0.00960155,97609.0,97607.0,0.153677]
[1739650852750,0.00960155,97609.0,97605.0,0.153679]
[1739650853367,0.00960155,97608.0,97606.0,0.153678]
[1739650854338,0.00960155,97608.0,97607.0,0.153677]
[1739650855826,0.00960155,97608.0,97607.0,0.153819]
[1739650856399,0.00960155,97608.0,97607.0,0.000142]
[1739650857330,0.12054497,97608.0,97607.0,0.000142]
[1739650857538,0.27421997,97608.0,97607.0,0.000142]
[1739650857744,0.26461842,97608.0,97607.0,0.000142]
[1739650858175,0.26361842,97608.0,97607.0,0.000142]
[1739650858595,0.26561842,97608.0,97607.0,0.000142]
[1739650859040,0.26361842,97608.0,97607.0,0.000142]
[1739650859239,0.27061842,97608.0,97607.0,0.000142]
[1739650859655,0.27261842,97608.0,97607.0,0.000142]
[1739650860069,0.27061842,97608.0,97607.0,0.000142]
[1739650860277,0.27761842,97608.0,97607.0,0.000142]
[1739650860480,0.59921842,97608.0,97607.0,0.000142]
[1739650862872,0.67801842,97608.0,97607.0,0.000142]
[1739650863073,0.71001585,97608.0,97607.0,0.000142]
[1739650863309,0.67801842,97608.0,97607.0,0.000142]
[1739650863524,0.70999986,97608.0,97607.0,0.000142]
[1739650863745,0.70299986,97608.0,97607.0,0.000142]
[1739650864428,0.66401842,97608.0,97607.0,0.000142]
[1739650864636,0.6959903,97608.0,97607.0,0.000142]
[1739650865025,0.7029903,97608.0,97607.0,0.000142]
[1739650865204,0.6959903,97608.0,97607.0,0.000142]
[1739650865423,0.7029903,97608.0,97607.0,0.000142]
[1739650865547,0.7099903,97608.0,97607.0,0.000142]
[1739650866422,0.67801842,97608.0,97607.0,0.000142]
[1739650866636,0.67101842,97608.0,97607.0,0.000142]
[1739650866835,0.67801842,97608.0,97607.0,0.000142]
[1739650867035,0.70997396,97608.0,97607.0,0.000142]
[1739650867453,0.82801842,97608.0,97607.0,0.000142]
[1739650867802,0.85996758,97608.0,97607.0,0.000142]
[1739650868017,0.82801842,97608.0,97607.0,0.000142]
[1739650875211,0.74921842,97608.0,97607.0,0.000142]
[1739650889779,0.74221842,97608.0,97607.0,0.000142]
[1739650890241,0.74921842,97608.0,97607.0,0.000142]
[1739650891069,0.74221842,97608.0,97607.0,0.000142]
[1739650891301,0.74921842,97608.0,97607.0,0.000142]
[1739650894177,0.78119716,97608.0,97607.0,0.000142]
[1739650906582,0.87317235,97608.0,97607.0,0.000142]
[1739650909905,0.78119716,97608.0,97607.0,0.000142]
[1739650925078,0.78119716,97608.0,97607.0,0.000142]
[1739650925297,0.76719716,97608.0,97607.0,0.000142]
[1739650926727,0.77419716,97608.0,97607.0,0.000142]
[1739650927329,0.84489716,97608.0,97607.0,0.000142]
[1739650927783,0.85189716,97608.0,97607.0,0.000142]
[1739650928127,0.84489716,97608.0,97607.0,0.000142]
[1739650928951,0.85189716,97608.0,97607.0,0.000142]
[1739650929701,0.85889716,97608.0,97607.0,0.000142]
[1739650930376,0.85189716,97608.0,97607.0,0.000142]
[1739650930591,0.85889716,97608.0,97607.0,0.000142]
[1739650933759,0.84489716,97608.0,97607.0,0.000142]
[1739650934171,0.85889716,97608.0,97607.0,0.000142]
[1739650936339,0.85889716,97608.0,97595.0,0.00032851]
[1739650936340,0.31113377,97596.0,97595.0,0.00032851]
[1739650936554,0.44561616,97596.0,97595.0,0.00032851]
[1739650937645,0.45261616,97596.0,97595.0,0.00032851]
[1739650937786,0.46919839,97596.0,97595.0,0.00032851]
[1739650940635,0.79079839,97596.0,97595.0,0.00032851]
[1739650941976,0.81089023,97596.0,97595.0,0.00032851]
[1739650946378,0.83004278,97596.0,97595.0,0.00032851]
[1739650949288,0.80995094,97596.0,97595.0,0.00032851]
[1739650954982,0.80295094,97596.0,97595.0,0.00032851]
[1739650955421,0.80995094,97596.0,97595.0,0.00032851]
[1739650955645,0.80295094,97596.0,97595.0,0.00032851]
[1739650955877,0.80995094,97596.0,97595.0,0.00032851]
[1739650956544,0.80295094,97596.0,97595.0,0.00032851]
[1739650956760,0.80995094,97596.0,97595.0,0.00032851]
[1739650956994,0.80295094,97596.0,97595.0,0.00032851]
[1739650957172,0.80995094,97596.0,97595.0,0.00032851]
[1739650957598,0.80295094,97596.0,97595.0,0.00032851]
[1739650957999,0.80995094,97596.0,97595.0,0.00032851]
[1739650958173,0.80295094,97596.0,97595.0,0.00032851]
[1739650958374,0.80995094,97596.0,97595.0,0.00032851]
[1739650964365,0.90190879,97596.0,97595.0,0.00032851]
[1739650967542,0.98400879,97596.0,97595.0,0.00032851]
[1739650968504,0.88505094,97596.0,97595.0,0.00032851]
[1739650968666,0.89205094,97596.0,97595.0,0.00032851]
[1739650970304,0.88505094,97596.0,97595.0,0.00032851]
[1739650970713,0.89205094,97596.0,97595.0,0.00032851]
[1739650974626,0.303699,97593.0,97592.0,0.000284]
[1739650974843,0.44562116,97593.0,97592.0,0.00032884]
[1739650975706,0.45262116,97593.0,97592.0,0.00032884]
[1739650975928,0.55809377,97593.0,97592.0,0.00032884]
[1739650976129,0.567676,97593.0,97592.0,0.00032884]
[1739650976341,0.889276,97593.0,97592.0,0.00032884]
[1739650976771,0.896276,97593.0,97592.0,0.00032884]
[1739650978676,0.16116877,97574.0,97571.0,0.0803]
[1739650978880,0.58527242,97574.0,97573.0,0.00057999]
[1739650979311,0.59485465,97574.0,97573.0,0.00057999]
[1739650979938,0.60185465,97574.0,97573.0,0.00057999]
[1739650980151,0.65171294,97574.0,97573.0,0.00057999]
[1739650980385,0.65938613,97574.0,97573.0,0.00057999]
[1739650980589,0.66638613,97574.0,97573.0,0.00057999]
[1739650987760,0.65938613,97574.0,97573.0,0.00057999]
[1739650987972,0.66638613,97574.0,97573.0,0.00057999]
[1739650988203,0.65938613,97574.0,97573.0,0.00057999]
[1739650989871,0.66638613,97574.0,97573.0,0.00057999]
[1739650990301,0.65938613,97574.0,97573.0,0.00057999]
[1739650990813,0.65238613,97574.0,97573.0,0.00057999]
[1739650991236,0.65938613,97574.0,97573.0,0.00057999]
[1739650991447,0.65238613,97574.0,97573.0,0.00057999]
[1739650991654,0.65938613,97574.0,97573.0,0.00057999]
[1739650991881,0.66638613,97574.0,97573.0,0.00057999]
[1739650992089,0.65938613,97574.0,97573.0,0.00057999]
[1739650992492,0.66638613,97574.0,97573.0,0.00057999]
[1739650993141,0.65938613,97574.0,97573.0,0.00057999]
[1739650993348,0.66638613,97574.0,97573.0,0.00057999]
[1739650993574,0.65938613,97574.0,97573.0,0.00057999]
[1739650993779,0.66638613,97574.0,97573.0,0.00057999]
[1739650993980,0.65938613,97574.0,97573.0,0.00057999]
[1739650994395,0.66638613,97574.0,97573.0,0.00057999]
[1739650995007,0.80938613,97574.0,97573.0,0.00057999]
[1739650995219,0.80238613,97574.0,97573.0,0.00057999]
[1739650995427,0.81638613,97574.0,97573.0,0.00057999]
[1739650995845,0.84132201,97574.0,97573.0,0.00057999]
[1739650996058,0.16119577,97557.0,97556.0,0.04590071]
[1739650996271,0.16119577,97557.0,97556.0,0.04594449]
[1739650996475,0.26369942,97557.0,97556.0,0.04594449]
[1739650997302,0.27137261,97557.0,97556.0,0.04594449]
[1739650997510,0.27337261,97557.0,97556.0,0.04594449]
[1739650997770,0.33281313,97557.0,97556.0,0.04594449]
[1739650997946,0.33081313,97557.0,97556.0,0.04594449]
[1739650998352,0.33281313,97557.0,97556.0,0.04594449]
[1739650999326,0.33481313,97557.0,97556.0,0.04594449]
[1739651000043,0.65641313,97557.0,97556.0,0.04594449]
[1739651002574,0.65441313,97557.0,97556.0,0.04594449]
[1739651002975,0.65241313,97557.0,97556.0,0.04594449]
[1739651003423,0.65441313,97557.0,97556.0,0.04594449]
[1739651003973,0.65641313,97557.0,97556.0,0.04594449]
[1739651004430,0.65441313,97557.0,97556.0,0.04594449]
[1739651004967,0.65741313,97557.0,97556.0,0.04594449]
[1739651007076,0.65741313,97557.0,97556.0,4.378e-05]
[1739651007306,0.80741313,97557.0,97556.0,4.378e-05]
[1739651008062,0.80541313,97557.0,97556.0,4.378e-05]
[1739651008326,0.81241313,97557.0,97556.0,4.378e-05]
[1739651008531,0.78170739,97557.0,97556.0,4.378e-05]
[1739651009081,0.77470739,97557.0,97556.0,4.378e-05]
[1739651009298,0.77870739,97557.0,97556.0,4.378e-05]
[1739651009619,0.78570739,97557.0,97556.0,4.378e-05]
[1739651010450,0.78570739,97557.0,97556.0,0.00018578]
[1739651013142,0.8163557,97557.0,97556.0,0.00018578]
[1739651015273,0.8093557,97557.0,97556.0,0.00018578]
[1739651015883,0.8023557,97557.0,97556.0,0.00018578]
[1739651016084,0.8093557,97557.0,97556.0,0.00018578]
[1739651016696,0.8163557,97557.0,97556.0,0.00018578]
[1739651021870,0.78570739,97557.0,97556.0,0.00018578]
[1739651025151,0.78570739,97557.0,97556.0,0.07938578]
[1739651025350,0.78570739,97557.0,97556.0,0.12778578]
[1739651025713,0.63195139,97557.0,97556.0,0.12778578]
[1739651025916,0.78570739,97557.0,97556.0,0.12778578]
[1739651026163,0.63195139,97557.0,97556.0,0.12778578]
[1739651026379,0.62451162,97557.0,97556.0,0.28154278]
[1739651026523,0.47451162,97557.0,97556.0,0.28154278]
[1739651026720,0.35285542,97557.0,97556.0,0.28154278]
[1739651027128,0.50285542,97557.0,97556.0,0.28154278]
[1739651027329,0.48885542,97557.0,97556.0,0.28154278]
[1739651027572,0.49585542,97557.0,97556.0,0.28154278]
[1739651027775,0.4786,97557.0,97556.0,0.28154278]
[1739651029141,0.4716,97557.0,97556.0,0.28154278]
[1739651029594,0.4776,97557.0,97556.0,0.28154278]
[1739651029976,0.4776,97557.0,97556.0,0.12778578]
[1739651030610,0.4746,97557.0,97556.0,0.12778578]
[1739651030818,0.4716,97557.0,97556.0,0.12778578]
[1739651031025,0.4716,97557.0,97556.0,0.12978578]
[1739651032426,0.4716,97557.0,97556.0,0.12778578]
[1739651032823,0.4716,97557.0,97556.0,0.12878578]
[1739651033485,0.4716,97557.0,97556.0,0.28254278]
[1739651033636,0.4716,97557.0,97556.0,0.12878578]
[1739651034317,0.4716,97557.0,97556.0,0.12778578]
[1739651034916,0.4716,97557.0,97556.0,0.28154278]
[1739651036088,0.4716,97557.0,97556.0,0.28254278]
[1739651036521,0.4716,97557.0,97556.0,0.28154278]
[1739651036914,0.4716,97557.0,97556.0,0.12878578]
[1739651038343,0.4716,97557.0,97556.0,0.28254278]
[1739651039243,0.4716,97557.0,97556.0,0.28154278]
[1739651039649,0.4716,97557.0,97556.0,0.28254278]
[1739651040067,0.4716,97557.0,97556.0,0.28154278]
[1739651040509,0.4716,97557.0,97556.0,0.28254278]
[1739651041123,0.4716,97557.0,97556.0,0.28154278]
[1739651042443,0.4716,97557.0,97556.0,0.28254278]
[1739651042826,0.4716,97557.0,97556.0,0.28154278]
[1739651043253,0.4716,97557.0,97556.0,0.28254278]
[1739651045673,0.4716,97557.0,97556.0,0.12878578]
[1739651046146,0.4716,97557.0,97556.0,0.28254278]
[1739651048320,0.4716,97557.0,97556.0,0.12878578]
[1739651049553,0.4716,97557.0,97556.0,0.12778578]
[1739651050113,0.4716,97557.0,97556.0,0.12878578]
[1739651050354,0.4726,97557.0,97556.0,0.12878578]
[1739651050547,0.4726,97557.0,97556.0,0.04958578]
[1739651051566,0.4726,97557.0,97556.0,0.04858578]
[1739651055309,0.3226,97557.0,97556.0,0.04858578]
[1739651055709,0.3216,97557.0,97556.0,0.04858578]
[1739651056045,0.3226,97557.0,97556.0,0.00018578]
[1739651056633,0.33027341,97557.0,97556.0,0.00018578]
[1739651057730,0.3226,97557.0,97556.0,0.00018578]
[1739651058364,0.33027694,97557.0,97556.0,0.00018578]
[1739651061973,0.32927694,97557.0,97556.0,0.00018578]
[1739651062175,0.33027694,97557.0,97556.0,0.00018578]
[1739651063625,0.33027694,97557.0,97556.0,0.15394278]
[1739651064932,0.32927694,97557.0,97556.0,0.15394278]
[1739651065138,0.33027694,97557.0,97556.0,0.15394278]
[1739651068835,0.33027694,97557.0,97556.0,0.00018578]
[1739651069897,0.33027694,97557.0,97556.0,0.15394278]
[1739651071852,0.33027694,97557.0,97556.0,0.00018578]
[1739651072472,0.32927694,97557.0,97556.0,0.00018578]
[1739651072838,0.33027694,97557.0,97556.0,0.00018578]
[1739651074610,0.33027694,97557.0,97556.0,0.15394278]
[1739651075038,0.44022036,97557.0,97556.0,0.15394278]
[1739651093414,0.44022036,97557.0,97556.0,0.00018578]
[1739651093992,0.45942262,97557.0,97556.0,0.00018578]
[1739651098797,0.61317862,97557.0,97556.0,0.00018578]
[1739651099058,0.61217862,97557.0,97556.0,0.00018578]
[1739651099535,0.59397636,97557.0,97556.0,0.00018578]
[1739651101363,0.59297636,97557.0,97556.0,0.00018578]
[1739651101587,0.61317927,97557.0,97556.0,0.00018578]
[1739651104227,0.61217927,97557.0,97556.0,0.00018578]
[1739651104802,0.61417927,97557.0,97556.0,0.00018578]
[1739651104999,0.59297636,97557.0,97556.0,0.00018578]
[1739651105280,0.59497636,97557.0,97556.0,0.00018578]
[1739651105480,0.59297636,97557.0,97556.0,0.00018578]
[1739651105786,0.59597636,97557.0,97556.0,0.00018578]
[1739651106254,0.59797636,97557.0,97556.0,0.00018578]
[1739651106767,0.59597636,97557.0,97556.0,0.00018578]
[1739651107405,0.59897636,97557.0,97556.0,0.00018578]
[1739651121764,0.61816637,97557.0,97556.0,0.00018578]
[1739651121974,0.76816637,97557.0,97556.0,0.00018578]
[1739651124686,0.74897636,97557.0,97556.0,0.00018578]
[1739651124892,0.76816532,97557.0,97556.0,0.00018578]
[1739651127594,0.77776009,97557.0,97556.0,0.00018578]
[1739651133121,0.77008315,97557.0,97556.0,0.00018578]
[1739651133460,0.77776088,97557.0,97556.0,0.00018578]
[1739651134889,0.86970967,97557.0,97556.0,0.00018578]
[1739651136919,0.90169388,97557.0,97556.0,0.00018578]
[1739651138955,0.80974509,97557.0,97556.0,0.00018578]
[1739651140338,0.80674509,97557.0,97556.0,0.00018578]
[1739651140626,0.80374509,97557.0,97556.0,0.00018578]
[1739651140832,0.81074509,97557.0,97556.0,0.00018578]
[1739651141030,0.81774509,97557.0,97556.0,0.00018578]
[1739651147792,0.79855613,97557.0,97556.0,0.00018578]
[1739651148745,0.78896136,97557.0,97556.0,0.00018578]
[1739651153249,0.75697715,97557.0,97556.0,0.00018578]
[1739651153498,0.78896565,97557.0,97556.0,0.00018578]
[1739651166719,0.78152588,97557.0,97556.0,0.00018578]
[1739651166962,0.78896565,97557.0,97556.0,0.00018578]
[1739651167331,0.75697715,97557.0,97556.0,0.00018578]
[1739651170993,0.84914058,97557.0,97556.0,0.00018578]
[1739651173804,0.75697715,97557.0,97556.0,0.00018578]
[1739651177933,0.74929942,97557.0,97556.0,0.00018578]
[1739651180052,0.74929942,97557.0,97556.0,0.00018578]
[1739651185495,0.84147193,97557.0,97556.0,0.00018578]
[1739651187456,0.87348075,97557.0,97556.0,0.00018578]
[1739651188094,0.78130824,97557.0,97556.0,0.00018578]
[1739651194489,0.74929942,97557.0,97556.0,0.00018578]
[1739651194870,0.43810365,97557.0,97556.0,0.00018578]
[1739651195080,0.43810365,97557.0,97556.0,0.15394278]
[1739651195666,0.43810365,97557.0,97556.0,0.28174278]
[1739651195871,0.43110365,97557.0,97556.0,0.28174278]
[1739651196098,0.3286,97557.0,97556.0,0.28174278]
[1739651196387,0.3356,97557.0,97556.0,0.28174278]
[1739651196780,0.3286,97557.0,97556.0,0.28174278]
[1739651196982,0.3236,97557.0,97556.0,0.28174278]
[1739651198341,0.3256,97557.0,97556.0,0.28174278]
[1739651199401,0.3236,97557.0,97556.0,0.28174278]
[1739651199753,0.3216,97557.0,97556.0,0.28374278]
[1739651199965,0.3216,97557.0,97556.0,0.28474278]
[1739651201942,0.3216,97563.0,97556.0,0.13098578]
[1739651202150,0.3216,97563.0,97562.0,0.139268]
[1739651202399,0.42410365,97563.0,97562.0,0.139268]
[1739651203578,0.42510365,97563.0,97562.0,0.139268]
[1739651204930,0.42610365,97563.0,97562.0,0.139268]
[1739651217670,0.42638765,97563.0,97562.0,0.139268]
[1739651219782,0.42638765,97563.0,97557.0,0.000142]
[1739651219984,0.10250365,97562.0,97559.0,0.205004]
[1739651220213,0.10250365,97562.0,97561.0,0.153749]
[1739651220962,0.10250365,97562.0,97557.0,0.000142]
[1739651221171,0.10250365,97562.0,97558.0,0.205006]
[1739651221431,0.10250365,97562.0,97561.0,0.153749]
[1739651222666,0.10350365,97562.0,97561.0,0.153749]
[1739651225765,0.10350365,97562.0,97558.0,0.205006]
[1739651226144,0.10350365,97562.0,97559.0,0.153751]
[1739651226862,0.10350365,97562.0,97561.0,0.153749]
[1739651227886,0.10250365,97562.0,97561.0,0.153749]
[1739651228825,0.10350365,97562.0,97561.0,0.153749]
[1739651230743,0.10378765,97562.0,97561.0,0.153749]
[1739651231457,0.001284,97562.0,97561.0,0.153749]
[1739651232975,0.001284,97562.0,97561.0,0.231649]
[1739651245574,0.001284,97562.0,97561.0,0.153749]
[1739651263232,0.001284,97562.0,97561.0,0.235749]
[1739651264298,0.000284,97562.0,97561.0,0.25616323]
[1739651264494,0.000284,97562.0,97561.0,0.25716323]
[1739651264938,0.000284,97562.0,97561.0,0.25616323]
[1739651265142,0.000284,97562.0,97561.0,0.25716323]
[1739651271570,0.000284,97562.0,97561.0,0.236749]
[1739651295375,0.000284,97562.0,97561.0,0.259749]
[1739651295780,0.000284,97563.0,97562.0,0.22760823]
[1739651295986,0.000284,97563.0,97562.0,0.30260823]
[1739651296641,0.000284,97563.0,97562.0,0.46260823]
[1739651297042,0.001284,97563.0,97562.0,0.46360823]
[1739651297470,0.000284,97567.0,97566.0,0.02556023]
[1739651297674,0.000284,97567.0,97566.0,0.45260223]
[1739651297883,0.000284,97567.0,97566.0,3.35834223]
[1739651298089,1e-06,97567.0,97566.0,3.46084588]
[1739651298293,1e-06,97567.0,97566.0,3.47084588]
[1739651299923,0.001001,97567.0,97566.0,3.47784588]
[1739651300603,0.001001,97567.0,97566.0,3.47984588]
[1739651301042,0.001001,97567.0,97566.0,3.47784588]
[1739651301247,0.002001,97567.0,97566.0,3.47984588]
[1739651302282,0.002001,97567.0,97566.0,0.57410588]
[1739651302764,0.002001,97567.0,97566.0,3.47984588]
[1739651312530,1e-06,97567.0,97566.0,3.47084588]
[1739651312655,0.001001,97567.0,97566.0,3.47784588]
[1739651313721,0.002001,97567.0,97566.0,3.48484588]
[1739651320505,0.002001,97567.0,97566.0,0.57910588]
[1739651320702,0.002001,97567.0,97566.0,3.48484588]
[1739651322899,0.002001,97567.0,97566.0,3.47484588]
[1739651323121,0.002001,97567.0,97566.0,3.48484588]
[1739651323720,0.002001,97567.0,97566.0,3.48498788]
[1739651329936,0.002001,97567.0,97566.0,1.14594788]
[1739651330807,0.002001,97567.0,97566.0,1.13594788]
[1739651330961,0.002001,97567.0,97566.0,1.12994788]
[1739651331323,0.002001,97567.0,97566.0,1.05494788]
[1739651332211,0.002001,97567.0,97566.0,0.57514788]
[1739651332735,0.002001,97567.0,97566.0,0.45594788]
[1739651333424,0.002001,97567.0,97566.0,0.56524788]
[1739651334109,0.002001,97567.0,97566.0,0.44594788]
[1739651334323,0.002001,97567.0,97566.0,0.44338765]
[1739651334538,0.002001,97567.0,97566.0,0.34344423]
[1739651335114,0.002001,97567.0,97566.0,0.75004423]
[1739651335333,0.002001,97567.0,97566.0,2.27864423]
[1739651335541,0.002001,97567.0,97566.0,2.27934423]
[1739651344367,0.002001,97567.0,97566.0,0.34344423]
[1739651347916,0.002001,97567.0,97566.0,0.78404423]
[1739651348337,0.002001,97567.0,97566.0,0.34344423]
[1739651349153,0.002001,97567.0,97566.0,0.78394423]
[1739651349319,0.002001,97567.0,97566.0,0.34344423]
[1739651392600,0.002001,97567.0,97566.0,0.340884]
[1739651393986,0.002001,97567.0,97566.0,0.34344423]
[1739651394624,0.002001,97567.0,97566.0,0.340884]
[1739651394820,0.002001,97567.0,97566.0,0.34344423]
[1739651397487,0.002001,97567.0,97566.0,0.340884]
[1739651397701,0.002001,97567.0,97566.0,0.34344423]
[1739651398141,0.002001,97567.0,97566.0,0.340884]
[1739651398681,0.002001,97567.0,97566.0,0.34344423]
[1739651402673,0.002001,97567.0,97566.0,0.340884]
[1739651402904,0.002001,97567.0,97566.0,0.167884]
[1739651403116,0.048901,97567.0,97566.0,0.014142]
[1739651403287,0.127901,97567.0,97566.0,0.014142]
[1739651403698,0.127901,97567.0,97566.0,0.007142]
[1739651403917,0.126901,97567.0,97566.0,0.160884]
[1739651404105,0.125901,97567.0,97566.0,0.004142]
[1739651404673,0.125901,97567.0,97566.0,0.007142]
[1739651404872,0.125901,97567.0,97566.0,0.160884]
[1739651405151,0.125901,97567.0,97566.0,0.007142]
[1739651406115,0.125901,97567.0,97566.0,0.160884]
[1739651410639,0.125901,97567.0,97566.0,0.007142]
[1739651412288,0.125901,97567.0,97566.0,0.160884]
[1739651417876,0.125901,97567.0,97566.0,0.007142]
[1739651422586,0.279641,97567.0,97566.0,0.007142]
[1739651424667,0.279641,97567.0,97566.0,0.003142]
[1739651425178,0.279641,97567.0,97566.0,0.007142]